Cogmind - Beta 11 @@@ ROGUE MODE // 2022.04.17 @ 11:56:37 Player: Stryker Result: Destroyed by as-46891 with Assembled Maul Performance ------------- Evolutions (0) 0 Regions Visited (2) 400 Robots Destroyed (20) 100 Value Destroyed (410) 410 Prototype IDs (1) 20 Alien Tech Used (0) 0 Bonus (0) 0 TOTAL SCORE: 930 Bonus ------- None Cogmind --------- Core Integrity 0/250 Matter 197/300 Energy 97/100 System Corruption 2% Temperature Cool (0) Movement Rolling (140) Ox4 Location -10/Mines Parts ------- > --- POWER (1) -------- (None) > --- PROPULSION (2) --- Light Treads Wheel > --- UTILITY (2) ------ High-capacity Storage Unit Light Armor Plating > --- WEAPON (2) ------- Light Assault Rifle Improved Light Cannon > --- INVENTORY (20) --- Wheel Wheel Compact Wheel Large Storage Unit Large Storage Unit Large Matter Pod (141) Signal Interpreter Improved Terrain Scanner Improved Terrain Scanner Seismic Detector Hacking Suite Tractor Beam Assault Rifle Light Assault Rifle Improved Light Cannon Mining Laser Hammer Peak State ------------ > --- POWER ------------ Light Ion Engine > --- PROPULSION ------- Aluminum Leg Aluminum Leg > --- UTILITY ---------- Small Storage Unit Improved Terrain Scanner > --- WEAPON ----------- Assault Rifle Light Assault Rifle > --- INVENTORY -------- Light Treads Light Treads Wheel Wheel Compact Wheel Improved Terrain Scanner Seismic Detector Light Assault Rifle [Rating: 10] Favorites ----------- Power Light Ion Engine Engine Light Ion Engine Propulsion Compact Wheel Treads Light Treads Leg Aluminum Leg Wheel Compact Wheel Flight Unit Improved Flight Unit Utility Weapon Shielding Device Improved Terrain Scanner Storage High-capacity Storage Unit Protection Weapon Shielding Weapon Light Assault Rifle Ballistic Gun Light Assault Rifle Ballistic Cannon Improved Light Cannon Build | -11 -10 -10 ------- Run | Scr Mat Min Slots Evolved . | . . . Power . | . . . Propulsion . | . . . Utility . | . . . Weapon . | . . . Parts Attached 19 | 2 14 3 Power 2 | . 2 . Engine 2 | . 2 . Core . | . . . Reactor . | . . . Propulsion 8 | 1 5 2 Treads 2 | . 1 1 Leg . | . . . Wheel 5 | 1 3 1 Hover . | . . . Flight 1 | . 1 . Utility 8 | 1 6 1 Device 2 | 1 1 . Storage 2 | . 2 . Processor . | . . . Hackware . | . . . Protection 4 | . 3 1 Artifact . | . . . Weapon 1 | . 1 . Energy Gun . | . . . Energy Cannon . | . . . Ballistic Gun . | . . . Ballistic Cannon 1 | . 1 . Launcher . | . . . Special Weapon . | . . . Impact Weapon . | . . . Slashing Weapon . | . . . Piercing Weapon . | . . . Special Melee Weapon . | . . . Unidentified Prototypes 1 | . 1 . Parts Lost 5 | . 1 4 Power 1 | . . 1 Propulsion 2 | . . 2 Utility 1 | . . 1 Weapon 1 | . 1 . Highest Loss Streak 4 | . 1 4 To Critical Strikes . | . . . Average Slot Usage (%) 97 | . 98 82 Engine 13 | . 14 2 Treads 10 | . 10 14 Leg 3 | . 3 . Wheel 13 | . 13 11 Device 3 | . 3 . Storage 14 | . 14 14 Protection 8 | . 8 11 Ballistic Gun 25 | . 26 14 Ballistic Cannon 2 | . 1 14 Naked Turns . | . . . Heaviest Build 49 | 12 49 49 Greatest Support 20 | 20 20 16 Greatest Overweight (x) 3 | 1 3 3 Average Overweight (x) 1 | . 1 3 Largest Inventory Capacity 20 | 8 20 20 Average Capacity 14 | 8 14 20 Most Carried 20 | 8 20 20 Average Carried 13 | 7 13 18 Final Capacity 20 | 8 20 20 Final Carried 20 | 8 20 17 Class Distribution -------------------- 100% | Mutant Dominant Class ---------------- Mutant | -10/Materials Mutant | -10/Mines Resources | -11 -10 -10 ----------- Run | Scr Mat Min Matter Collected 801 | 276 515 10 Remotely . | . . . Salvage Created 723 | 165 525 33 Parts 45 | 10 35 . Haulers Intercepted . | . . . Recyclers Shooed 2 | . 2 . Parts Field Recycled . | . . . Retrieved Matter . | . . . Parts Self-Destructed . | . . . Prevented . | . . . Kills | -11 -10 -10 ------- Run | Scr Mat Min Combat Hostiles Destroyed 16 | . 11 5 Guns 10 | . 9 1 Cannons 6 | . 2 4 Classes Destroyed 8 | 2 5 1 Tunneler 4 | 4 . . Recycler 2 | 1 1 . Mechanic 1 | . 1 . Operator 1 | . 1 . Watcher 1 | . 1 . Swarmer 3 | . 3 . Grunt 8 | . 8 . Assembled 5 | . . 5 Best Kill Streak 4 | 3 3 4 Combat Bots Only 4 | . 3 4 Max Kills in Single Turn 1 | 1 1 1 Gunslinging . | . . . Exploded . | . . . Melee . | . . . Uniques/NPCs Destroyed . | . . . Combat | -11 -10 -10 -------- Run | Scr Mat Min Damage Taken 997 | . 543 454 Core 253 | . 84 169 Absorbed by Shields . | . . . Redirected to Shielding 52 | . 32 20 Core Remaining (%) 100 | 100 . . Volleys Fired 93 | 14 61 18 Largest 2 | 2 2 2 Hottest 59 | 40 59 59 Shots Fired 186 | 28 122 36 Gun 160 | 28 114 18 Cannon 26 | . 8 18 Launcher . | . . . Special . | . . . Kinetic 186 | 28 122 36 Thermal . | . . . Explosive . | . . . Electromagnetic . | . . . Robot Hit Streak 18 | 4 18 6 Robot Miss Streak 3 | 3 3 2 Penetration Max . | . . . Secondary Targets . | . . . Shots Hit Robots 119 | 14 79 26 Core Hits 42 | 6 28 8 Critical Kills . | . . . Critical Parts Destroyed . | . . . Critical Strikes 2 | . 1 1 Blast 2 | . 1 1 Melee Attacks . | . . . Impact . | . . . Slashing . | . . . Piercing . | . . . Sneak Attacks . | . . . Combat Hostiles . | . . . Follow-up Attacks . | . . . Damage Inflicted 1414 | 152 890 372 Guns 1019 | 152 769 98 Cannons 395 | . 121 274 Explosions . | . . . Melee . | . . . Ramming . | . . . Kinetic 1414 | 152 890 372 Thermal . | . . . Explosive . | . . . Electromagnetic . | . . . Impact . | . . . Slashing . | . . . Piercing . | . . . Highest Corruption 2 | . . 2 Average Corruption 2 | . . 2 Corruption Purged . | . . . Corruption Blocked . | . . . Overload Shots . | . . . Overflow Damage 3 | . . 3 Projectiles 3 | . . 3 Explosions . | . . . Melee . | . . . Knockbacks . | . . . Impact . | . . . Kinetic . | . . . Secondary . | . . . Self-Inflicted Damage . | . . . Shots . | . . . Rammed . | . . . Targets Rammed . | . . . Kicked . | . . . Crushed . | . . . Highest Temperature 60 | . 60 28 Average Temperature 15 | . 19 10 Received Heat Transfer 221 | . 201 20 Siege Activations . | . . . Robots Corrupted . | . . . Combat Hostiles . | . . . Parts Fried . | . . . Impact Corruptions . | . . . Robots Melted . | . . . Combat Hostiles . | . . . Parts Melted . | . . . Heat Transferred . | . . . Parts Sabotaged . | . . . Parts Stolen . | . . . Parts Stripped . | . . . Power Chain Reactions . | . . . Missiles Intercepted . | . . . Alert | -11 -10 -10 ------- Run | Scr Mat Min Peak Influence 275 | 25 275 48 Initial 48 | . 16 48 Average 110 | 13 129 23 Maximum Alert Level 1 | . 1 . Low Security (%) 83 | 100 79 100 Level 1 16 | . 20 . Level 2 . | . . . Level 3 . | . . . Level 4 . | . . . Level 5 . | . . . High Security . | . . . Max Security . | . . . Squads Dispatched 2 | . 2 . Investigation . | . . . Extermination . | . . . Reinforcement 2 | . 2 . Assault . | . . . Garrison . | . . . Intercept . | . . . Searches Triggered . | . . . Construction Impeded . | . . . Haulers Reinforced . | . . . Active Scanning Responses . | . . . Cargo Convoy Interrupts . | . . . Stealth | -11 -10 -10 --------- Run | Scr Mat Min Distress Signals . | . . . Communications Jammed . | . . . Distress Signals . | . . . Times Spotted 34 | . 23 11 Peak Tracking Total 8 | . 4 8 Tactical Retreats 2 | . 1 1 Traps | -11 -10 -10 ------- Run | Scr Mat Min Traps Triggered . | . . . Indirectly . | . . . Trap Hack Attempts . | . . . Triggered . | . . . Disarmed . | . . . Reprogrammed . | . . . Reused . | . . . Traps Extracted . | . . . Installed . | . . . Triggered . | . . . Machines | -11 -10 -10 ---------- Run | Scr Mat Min Machines Disabled 1 | . 1 . Max in Single Turn 1 | . 1 . Machines Sabotaged . | . . . Garrisons Compromised . | . . . Overloaded Fab Kills . | . . . Hacking | -11 -10 -10 --------- Run | Scr Mat Min Machines Accessed 5 | . 5 . Terminals 4 | . 4 . Fabricators . | . . . Repair Stations . | . . . Recycling Units 1 | . 1 . Scanalyzers . | . . . Garrison Access . | . . . Total Hacks 26 | . 26 . Successful 8 | . 8 . Failed 17 | . 17 . Catastrophic 2 | . 2 . Database Lockouts 1 | . 1 . Manual 22 | . 22 . Terminals 23 | . 23 . Fabricators . | . . . Repair Stations . | . . . Recycling Units 3 | . 3 . Scanalyzers . | . . . Garrison Access . | . . . Terminal Hacks 4 | . 4 . Part Schematic 2 | . 2 . Alert Level 1 | . 1 . Locate Traps 1 | . 1 . Fabricator Hacks . | . . . Repair Station Hacks . | . . . Recycling Unit Hacks . | . . . Scanalyzer . | . . . Garrison Access Hacks . | . . . Unauthorized Hacks 4 | . 4 . Terminals 3 | . 3 . Track 2 | . 2 . Botnet 1 | . 1 . Fabricators . | . . . Repair Stations . | . . . Recycling Units 1 | . 1 . Reject 1 | . 1 . Scanalyzers . | . . . Garrison Access . | . . . Data Cores Recovered . | . . . Used . | . . . Hacking Detections 5 | . 5 . Full Trace Events 2 | . 2 . Feedback Events . | . . . Feedback Blocked . | . . . Robot Schematics Acquired . | . . . Robots Built . | . . . Authchips . | . . . Time . | . . . Total Robot Build Rating . | . . . Part Schematics Acquired 2 | . 2 . Parts Built . | . . . Authchips . | . . . Time . | . . . Total Part Build Rating . | . . . Parts Repaired . | . . . Time . | . . . Parts Recycled . | . . . Recycled Matter . | . . . Retrieved Matter . | . . . Retrieved Components . | . . . Parts Scanalyzed . | . . . Part Schematics Acquired . | . . . Parts Damaged . | . . . Bothacking | -11 -10 -10 ------------ Run | Scr Mat Min Used RIF Installer . | . . . Robots Hacked . | . . . Non-combat . | . . . Combat . | . . . Robot Hacks Applied . | . . . Relay Couplers Released . | . . . Fabnet Peak Effective % . | . . . Robots Rewired . | . . . Allies Hacked . | . . . Hacks Repelled . | . . . Allies | -11 -10 -10 -------- Run | Scr Mat Min Total Allies . | . . . Largest Group . | . . . Highest-Rated Group . | . . . Highest-Rated Ally . | . . . Total Orders . | . . . Ally Attacks . | . . . Total Damage . | . . . Kills . | . . . Allies Corrupted . | . . . Allies Melted . | . . . Intel | -11 -10 -10 ------- Run | Scr Mat Min Robot Analysis Total . | . . . Derelict Logs Recovered . | . . . Drone Launches . | . . . Drone Recoveries . | . . . Exploration | -11 -10 -10 ------------- Run | Scr Mat Min Turns Passed 1008 | 109 836 63 Spaces Moved 507 | 35 466 6 Core . | . . . Treads 1 | . 1 . Legs 26 | 26 . . Wheels 480 | 9 465 6 Hover . | . . . Flight . | . . . Fastest Speed 95 | 95 95 145 Average Speed 116 | 113 116 145 Slowest Speed 240 | 120 240 145 Overloaded Moves . | . . . Propulsion Burnouts . | . . . Robots Hopped . | . . . Cave-ins Triggered . | . . . Exploration Rate (%) 25 | 3 67 5 Regions Visited 2 Branch Regions 1 Pre-discovered Areas . | . . . Known Exits Taken . | . . . Unknown Exits Taken 2 | 1 1 . Scrap Searched . | . . . Spaces Dug . | . . . Terrain Destroyed 3 | . 1 2 Melee . | . . . Projectile 3 | . 1 2 AOE . | . . . Terrain Rammed . | . . . Walls Destroyed . | . . . Machines Disabled . | . . . Actions | -11 -10 -10 --------- Run | Scr Mat Min Total 763 | 78 655 30 Wait 113 | 23 87 3 Move 505 | 34 465 6 Hop . | . . . Pick Up 18 | 3 15 . Fast Attach 5 | 2 3 . Attach 6 | . 3 3 Detach 1 | . 1 . Swap 8 | . 8 . Drop 14 | 2 12 . Fire 93 | 14 61 18 Melee . | . . . Ram . | . . . Kick . | . . . Crush . | . . . Escape Stasis . | . . . Rewire . | . . . Trap . | . . . Miscellaneous . | . . . Route ------- -11/Scrapyard -10/Materials (discovered 2 exits: [*Mat] / [*Min]) -10/Mines History --------- Turn | Location | Event 1 | -11/Scrapyard | Discovered new exit (range 3) 110 | -11/Scrapyard | Entered Materials 316 | -10/Materials | Build established: Mutant 398 | -10/Materials | Discovered new exit (range 15) 601 | -10/Materials | Discovered new exit (range 15) 787 | -10/Materials | Central database locked down 946 | -10/Materials | Entered Mines 947 | -10/Mines | Assembled infested the area 993 | -10/Mines | Core integrity fell below 50% 1002 | -10/Mines | Core integrity fell below 20% 1009 | -10/Mines | Destroyed by as-46891 with Assembled Maul Last Messages --------------- 00942_ Acquired Mining Laser. LOCATION=UNKNOWN GOAL=ESCAPE 00947_ ALERT: Infestation in the mines, dispatching Demolisher response squad. 00958_ Lgt. Ion Engine destroyed. 00961_ Destroyed Asb. F-torch. 00964_ Lgt. Treads destroyed. 00967_ Destroyed Asb. Hover Unit. 00967_ as-04586 suffers critical hit (Blast). 00967_ as-04586 destroyed. 00968_ Com. Wheel destroyed. 00971_ as-75160 destroyed. 00980_ as-42580 destroyed. 00988_ as-96203 destroyed. 00989_ Acquired 10 matter. 00989_ Weapon Shielding destroyed. 00989_ System corrupted by crushing effect (+2). 01004_ Knocked back. 01009_ as-78552 destroyed. Map ----- +----------------------------------------------------+ | ????????????????????????????????????? | | ????????????????????????????????????? | | ????????????????????????????????????? | | ????????????????????????????????????? | | ????????????????????????????????????? | | ????????????????????????????????????? | | ????????????????????????????????????? | | ????????????????????????????????????? | | ????????????????????????????????????? | | ????????????????????????????????????? | | ????????????????????????????????????? | | ????????????????????????????????????? | | ????????????? ??????????????????? | | ????????????? ??????????????????? | | ????????????? ??????????????????? | | ????????????? ???????????????????? | | ????????????? ???????????????????? | | ?????????????# ???????????????????? | | ?????????????# #???????????????????? | | ?????????????# #???????????????????? | | ?????????????# #???????????????????? | | ?????????????# #???????????????????? | | ?????????????# ##??????????????????? | | ?????????????# ###????????????????? | | ?????????##### #????????????????? | | ????????##aa@ #????????????????? | | ????????#%%a% #????????????????? | | ????????##a;## #????????????????? | | ?????????#%#?# #????????????????? | | ?????????#a??## ##????????????????? | | ?????????#????# ###?????????????????? | | ??????????????# #???????????????????? | | ??????????????# ???????????????????? | | ??????????????###???????????????????? | | ????????????????????????????????????? | | ????????????????????????????????????? | | ????????????????????????????????????? | | ????????????????????????????????????? | | ????????????????????????????????????? | | ????????????????????????????????????? | | ????????????????????????????????????? | | ????????????????????????????????????? | | ????????????????????????????????????? | | ????????????????????????????????????? | | ????????????????????????????????????? | | ????????????????????????????????????? | | ????????????????????????????????????? | | ????????????????????????????????????? | | ????????????????????????????????????? | | ????????????????????????????????????? | +----------------------------------------------------+ Best States ------------- Heat Dissipation 25 Energy Generation 10 Energy Capacity 125 Matter Stores 300 Matter Capacity 300 Sight Range 16 Terrain Scan Range 16 Terrain Scan Density 10 Armor Coverage 150 Weapon Shielding 33 Evasion (%) 50 Recoil Reduction 1 Item Schematics ----------------- Huge Storage Unit | -10/Materials | Hacked Hcp. Storage Unit | -10/Materials | Hacked Robot Schematics ------------------ None Fabricated ------------ Nothing Alien Tech Used ----------------- None Achievements -------------- None Challenges ------------ None Game ------ Seed WaveCouplerSplitter Manual? 0 Play Time 00:14:09 Cumulative 1269.1 hours Start 2022.04.17 @ 11:38:22 End 2022.04.17 @ 11:56:37 Sessions 3 Manual Loads 0 Difficulty Rogue Special Mode None Game No. 354 Rogue 354 Adventurer 0 Explorer 0 Win Type - Total 44 Types 27/6/7/3/0/0/0/1/0 Lore% 81 Gallery% 83 Achievement% 73 Wizard Run 0 Options --------- ASCII 0 Keyboard 1 Movement Numpad Keybinds 0 Fullscreen 1 Font 24/Crisp Map View 76x50 Tactical HUD 1 Map Filters NONE Filters NONE Steam 1 RUN: 9e8869c3-f1c2-4462-8a45-4b3736ea4a6c